Cogmind - Beta 13 @@@ ROGUE MODE // 2024.04.05 @ 12:38:38 Player: Phosphorus Result: Self-destructed Performance ------------- Evolutions (3) 1500 Regions Visited (5) 1000 Robots Destroyed (95) 475 Value Destroyed (4005) 4005 Prototype IDs (14) 280 Alien Tech Used (0) 0 Bonus (755) 755 TOTAL SCORE: 8015 Bonus ------- High Alert Combat Kills 567 Entered Garrisons 200 Friendly Fire -12 Cogmind --------- Core Integrity 598/700 Matter 281/300 Energy 157/160 System Corruption 8% Temperature Cool (0) Movement Flying (40) Location -7/Factory Parts ------- > --- POWER (1) -------- Light Nuclear Core > --- PROPULSION (4) --- Flightbrick > --- UTILITY (6+2) ---- Medium Storage Unit Improved Targeting Computer Improved Utility Shielding Hacking Suite Hacking Suite Advanced Hacking Suite (+) System Shield > --- WEAPON (2) ------- Lance > --- INVENTORY (10) --- Light Angular Momentum Engine Improved Signal Interpreter Transport Network Coupler Improved Utility Shielding Light Armor Plating Improved Light Armor Plating Authchip [Processor] Heavy Rocket Launcher Improved Datajack Multitool Peak State ------------ > --- POWER ------------ Light Nuclear Core > --- PROPULSION ------- Flightbrick > --- UTILITY ---------- Medium Storage Unit Improved Targeting Computer Target Analyzer Improved Utility Shielding Hacking Suite Hacking Suite Advanced Hacking Suite System Shield > --- WEAPON ----------- Lance > --- INVENTORY -------- Light Angular Momentum Engine Improved Signal Interpreter Transport Network Coupler Improved Utility Shielding Light Armor Plating Improved Light Armor Plating Authchip [Processor] Heavy Rocket Launcher Improved Datajack Multitool [Rating: 71] Favorites ----------- Power Subdweller Power Source Engine Subdweller Power Source Power Core Light Nuclear Core Propulsion Light Treads Treads Light Treads Leg Aluminum Leg Wheel Compact Wheel Flight Unit Flightbrick Utility Large Storage Unit Device Improved Heat Sink Storage Large Storage Unit Processor Improved Targeting Computer Hackware Hacking Suite Protection Core Shielding Weapon Subdweller Beam Cannon Energy Cannon Subdweller Beam Cannon Ballistic Gun Enhanced Autogun Ballistic Cannon Light Cannon Launcher Improved Grenade Launcher Special Weapon Mining Laser Impact Weapon Great Maul Piercing Weapon Lance Build | -11 -10 -10 -8 -8 -7 ------- Run | Yrd Mat Sub Mat Gar Fac Slots Evolved 6 | . . . 4 . 2 Power . | . . . . . . Propulsion 2 | . . . 2 . . Utility 4 | . . . 2 . 2 Weapon . | . . . . . . Parts Attached 118 | 7 6 16 43 22 24 Power 12 | 1 1 1 5 . 4 Engine 9 | 1 1 1 3 . 3 Core 3 | . . . 2 . 1 Reactor . | . . . . . . Propulsion 35 | 2 . 4 22 5 2 Treads 23 | 2 . . 15 5 1 Leg 9 | . . 3 6 . . Wheel 2 | . . 1 1 . . Hover . | . . . . . . Flight 1 | . . . . . 1 Utility 26 | 2 4 . 8 2 10 Device 6 | 1 . . 4 1 . Storage 4 | 1 2 . . . 1 Processor 2 | . . . 1 . 1 Hackware 4 | . . . . . 4 Protection 10 | . 2 . 3 1 4 Artifact . | . . . . . . Weapon 45 | 2 1 11 8 15 8 Energy Gun . | . . . . . . Energy Cannon 7 | . . 5 2 . . Ballistic Gun 19 | 2 . 3 6 7 1 Ballistic Cannon 1 | . . 1 . . . Launcher 7 | . . . . 5 2 Special Weapon 5 | . 1 2 . . 2 Impact Weapon 1 | . . . . 1 . Slashing Weapon . | . . . . . . Piercing Weapon 5 | . . . . 2 3 Special Melee Weapon . | . . . . . . Unidentified Prototypes 2 | . . . 1 . 1 Parts Lost 17 | . 1 4 7 1 4 Power 5 | . 1 1 1 . 2 Propulsion 7 | . . 2 3 1 1 Utility 2 | . . . 1 . 1 Weapon 3 | . . 1 2 . . Highest Loss Streak 4 | . 1 4 2 1 3 To Critical Strikes 1 | . . . . . 1 Average Slot Usage (%) 94 | . 99 99 95 96 79 Engine 9 | . 13 13 6 9 3 Treads 17 | . 28 . 20 33 18 Leg 10 | . . 27 8 . . Device 5 | . 2 . 11 9 4 Storage 10 | . 14 14 9 9 6 Processor 4 | . . . 8 9 6 Hackware 1 | . . . . . 10 Protection 10 | . 12 14 6 9 10 Energy Cannon 8 | . . 25 3 . . Ballistic Gun 11 | . 27 1 14 14 9 Naked Turns . | . . . . . . Heaviest Build 51 | 14 29 42 44 44 51 Greatest Support 94 | 40 40 20 80 94 94 Greatest Overweight (x) 4 | . . 2 4 . . Average Overweight (x) . | . . 1 . . . Largest Inventory Capacity 15 | 8 15 15 15 15 15 Average Capacity 14 | 7 13 15 15 15 13 Most Carried 15 | 7 11 15 15 15 15 Average Carried 13 | 3 9 14 14 14 12 Final Capacity 15 | 8 15 15 15 15 10 Final Carried 15 | 7 11 15 15 15 10 Class Distribution -------------------- 60% | Mutant 33% | Scavenger-Mutant 5% | Hacker-Mutant Dominant Class ---------------- Mutant | -10/Materials Mutant | -10/Subcaves Scavenger-Mutant | -8/Materials Mutant | -8/Garrison Mutant | -7/Factory Resources | -11 -10 -10 -8 -8 -7 ----------- Run | Yrd Mat Sub Mat Gar Fac Matter Collected 3394 | 322 220 280 1249 530 793 Remotely . | . . . . . . Salvage Created 3870 | 175 220 297 1744 539 895 Parts 220 | 14 10 18 92 29 57 Haulers Intercepted 6 | . 1 . 3 1 1 Recyclers Shooed . | . . . . . . Parts Field Recycled . | . . . . . . Retrieved Matter . | . . . . . . Parts Self-Destructed 4 | . . 4 . . . Prevented . | . . . . . . Kills | -11 -10 -10 -8 -8 -7 ------- Run | Yrd Mat Sub Mat Gar Fac Combat Hostiles Destroyed 68 | . 4 3 30 16 15 Melee 1 | . . . . . 1 Guns 42 | . 4 1 28 2 7 Cannons 3 | . . 1 2 . . AOE 21 | . . . . 14 7 Classes Destroyed 16 | 2 2 2 7 . 3 Builder 4 | . . . . . 4 Tunneler 4 | 4 . . . . . Hauler 6 | . 1 . 3 1 1 Recycler 4 | 1 . . 2 . 1 Mechanic 2 | . . . 1 . 1 Operator 1 | . . . . . 1 Watcher 6 | . . . 4 . 2 Swarmer 9 | . . . 3 3 3 Grunt 41 | . 4 . 17 11 9 Brawler 2 | . . . 1 . 1 Sentry 9 | . . . 6 2 1 Specialist 2 | . . . 2 . . Hunter 1 | . . . 1 . . Programmer 1 | . . . . . 1 Artisan 1 | . . 1 . . . Subdweller 3 | . . 3 . . . Best Kill Streak 6 | 2 2 2 6 3 6 Combat Bots Only 6 | . 2 2 6 3 4 Max Kills in Single Turn 3 | 1 1 1 1 2 3 Gunslinging . | . . . . . . Exploded 3 | . . . . 2 3 Melee 1 | . . . . . 1 Uniques/NPCs Destroyed . | . . . . . . Combat | -11 -10 -10 -8 -8 -7 -------- Run | Yrd Mat Sub Mat Gar Fac Hostile Shots Fired 420 | . 45 17 153 86 119 Missed 145 | . 11 3 37 39 55 Damage Taken 5130 | . 482 350 1953 1339 1006 Core 652 | . 86 69 134 261 102 Absorbed by Shields . | . . . . . . Redirected to Shielding 146 | . 18 13 . . 115 Regen/Repaired (Parts) 130 | . . . 130 . . Core Remaining (%) 55 | 100 . 38 . 28 . Volleys Fired 278 | 13 42 20 124 46 33 Largest 2 | 2 2 2 2 2 2 Hottest 160 | 40 100 160 160 50 50 Shots Fired 500 | 26 74 27 241 72 60 Gun 428 | 26 64 9 222 52 55 Cannon 33 | . . 14 19 . . Launcher 25 | . . . . 20 5 Special 14 | . 10 4 . . . Kinetic 432 | 26 64 13 222 52 55 Thermal 43 | . 10 14 19 . . Explosive 25 | . . . . 20 5 Electromagnetic . | . . . . . . Robot Hit Streak 15 | 5 6 9 15 13 11 Robot Miss Streak 6 | 2 6 1 4 3 2 Penetration Max . | . . . . . . Secondary Targets 4 | . 2 . 2 . . Max Gunslinging Chain 1 | . 1 . 1 . . Shots Hit Robots 348 | 15 32 18 181 43 59 Core Hits 182 | 7 13 8 75 36 43 Critical Kills 4 | 1 . 1 1 . 1 Critical Parts Destroyed 2 | . . . 2 . . Critical Strikes 9 | 1 . 2 3 . 3 Meltdown 1 | . . 1 . . . Destroy 5 | 1 . . 3 . 1 Blast 1 | . . 1 . . . Impale 2 | . . . . . 2 Melee Attacks 37 | . . . . 6 31 Impact 1 | . . . . 1 . Slashing . | . . . . . . Piercing 36 | . . . . 5 31 Sneak Attacks 1 | . . . . . 1 Combat Hostiles . | . . . . . . Follow-up Attacks . | . . . . . . Damage Inflicted 8599 | 179 378 324 3459 2159 2100 Guns 5150 | 179 378 67 3211 581 734 Cannons 504 | . . 257 247 . . Explosions 2250 | . . . . 1530 720 Melee 694 | . . . . 48 646 Ramming 1 | . . . 1 . . Kinetic 5184 | 179 378 101 3211 581 734 Thermal 470 | . . 223 247 . . Explosive 2250 | . . . . 1530 720 Electromagnetic . | . . . . . . Impact . | . . . . . . Slashing . | . . . . . . Piercing 694 | . . . . 48 646 Highest Corruption 8 | . . . 5 5 8 Average Corruption 5 | . . . 4 5 7 Corruption Purged . | . . . . . . Corruption Blocked . | . . . . . . Effects 67 | . . . 25 24 18 Message Errors 16 | . . . 8 1 7 Matter Fused 18 | . . . 5 9 4 Heat Flow Errors 10 | . . . 4 4 2 Energy Discharges 10 | . . . 3 6 1 Parts Rejected 1 | . . . 1 . . Parts Fused 1 | . . . . 1 . Data Loss (minor) 6 | . . . 2 2 2 Data Loss (major) 1 | . . . . . 1 Misfires 1 | . . . . 1 . Weapon Failures 3 | . . . 2 . 1 Overload Shots . | . . . . . . Overflow Damage 279 | . . . 12 131 136 Projectiles 12 | . . . 12 . . Explosions 149 | . . . . 131 18 Melee 118 | . . . . . 118 Knockbacks 1 | . . 1 . . . Impact . | . . . . . . Kinetic 1 | . . 1 . . . Secondary . | . . . . . . Self-Inflicted Damage 496 | . . . . 446 50 Shots 16 | . . . . 14 2 Rammed 1 | . . . 1 . . Targets Rammed 1 | . . . 1 . . Kicked . | . . . . . . Crushed . | . . . . . . Highest Temperature 244 | . 120 35 155 195 244 Average Temperature 45 | . 33 20 38 65 103 Received Heat Transfer 1620 | . 270 51 765 315 219 Siege Activations . | . . . . . . Robots Corrupted . | . . . . . . Combat Hostiles . | . . . . . . Parts Fried . | . . . . . . Impact Corruptions . | . . . . . . Robots Melted 1 | . . 1 . . . Combat Hostiles 1 | . . 1 . . . Parts Melted . | . . . . . . Heat Transferred 629 | . . 296 333 . . Parts Sabotaged . | . . . . . . Parts Stolen . | . . . . . . Parts Stripped . | . . . . . . Power Chain Reactions . | . . . . . . Alert | -11 -10 -10 -8 -8 -7 ------- Run | Yrd Mat Sub Mat Gar Fac Peak Influence 1279 | 25 108 . 476 1279 1209 Initial 671 | . 16 . . 307 671 Average 446 | 10 52 . 242 796 821 Maximum Alert Level 4 | . . . 2 4 4 Low Security (%) 36 | 100 100 . 46 . . Level 1 13 | . . . 32 7 . Level 2 22 | . . . 20 24 42 Level 3 24 | . . . . 62 54 Level 4 1 | . . . . 5 3 Level 5 . | . . . . . . High Security . | . . . . . . Max Security . | . . . . . . Squads Dispatched 15 | . 2 . 3 . 10 Investigation 4 | . . . 1 . 3 Extermination 1 | . . . . . 1 Reinforcement 6 | . 2 . 2 . 2 Assault 3 | . . . . . 3 Garrison 1 | . . . . . 1 Intercept . | . . . . . . Searches Triggered . | . . . . . . Construction Impeded 1 | . . . . . 1 Haulers Reinforced . | . . . . . . Active Scanning Responses . | . . . . . . Cargo Convoy Interrupts . | . . . . . . Stealth | -11 -10 -10 -8 -8 -7 --------- Run | Yrd Mat Sub Mat Gar Fac Distress Signals 5 | . 1 . 3 1 . Communications Jammed . | . . . . . . Distress Signals . | . . . . . . Times Spotted 111 | . 8 3 44 18 38 Peak Tracking Total 7 | . 3 2 6 3 7 Tactical Retreats 14 | . . . 4 1 9 Traps | -11 -10 -10 -8 -8 -7 ------- Run | Yrd Mat Sub Mat Gar Fac Traps Triggered 10 | . . 1 4 2 3 Indirectly . | . . . . . . Trap Hack Attempts . | . . . . . . Triggered . | . . . . . . Disarmed . | . . . . . . Reprogrammed . | . . . . . . Reused . | . . . . . . Traps Extracted . | . . . . . . Installed . | . . . . . . Triggered . | . . . . . . Machines | -11 -10 -10 -8 -8 -7 ---------- Run | Yrd Mat Sub Mat Gar Fac Machines Disabled 23 | . . 1 5 8 9 Max in Single Turn 3 | . . 1 2 2 3 Garrison Access 1 | . . . . . 1 Garrison Relay 2 | . . . . 2 . Phase Generator 1 | . . . . 1 . Machines Repaired . | . . . . . . Machines Dismantled . | . . . . . . Machines Sabotaged . | . . . . . . Overloaded Fab Kills . | . . . . . . Hacking | -11 -10 -10 -8 -8 -7 --------- Run | Yrd Mat Sub Mat Gar Fac Machines Accessed 21 | . 1 1 10 2 7 Terminals 14 | . 1 . 7 2 4 Fabricators 1 | . . . . . 1 Repair Stations 1 | . . . 1 . . Recycling Units 1 | . . . 1 . . Scanalyzers 1 | . . . . . 1 Garrison Access 2 | . . . 1 . 1 Total Hacks 66 | . 2 9 31 4 20 Successful 34 | . 1 9 11 . 13 Failed 32 | . 1 . 20 4 7 Catastrophic 8 | . 1 . 4 2 1 Database Lockouts . | . . . . . . Manual 27 | . . . 18 . 9 Terminals 42 | . 2 . 23 4 13 Fabricators 2 | . . . . . 2 Repair Stations 5 | . . . 5 . . Recycling Units 2 | . . . 2 . . Scanalyzers 3 | . . . . . 3 Garrison Access 3 | . . . 1 . 2 Terminal Hacks 21 | . 1 9 5 . 6 Record 8 | . . 8 . . . Part Schematic 3 | . . . 2 . 1 Prototype ID Bank 1 | . . . 1 . . Machine Index 1 | . . . . . 1 Terminal Index 1 | . . . . . 1 Locate Traps 2 | . . . 1 . 1 Hauler Manifests 1 | . . . 1 . . Registered Components 1 | . 1 . . . . Zone Layout 2 | . . . . . 2 Derelict Proto ID Bank 1 | . . 1 . . . Fabricator Hacks 1 | . . . . . 1 Load Schematic 1 | . . . . . 1 Repair Station Hacks 3 | . . . 3 . . Scan Component 2 | . . . 2 . . Repair 1 | . . . 1 . . Recycling Unit Hacks 1 | . . . 1 . . Report Inventory 1 | . . . 1 . . Scanalyzer 2 | . . . . . 2 Insert Component 1 | . . . . . 1 Analyze 1 | . . . . . 1 Garrison Access Hacks 2 | . . . 1 . 1 Unlock Access 1 | . . . 1 . . Seal Access 1 | . . . . . 1 Unauthorized Hacks 4 | . . . 1 . 3 Terminals 3 | . . . 1 . 2 Botnet 1 | . . . . . 1 Operators 2 | . . . 1 . 1 Fabricators 1 | . . . . . 1 Recompile 1 | . . . . . 1 Repair Stations . | . . . . . . Recycling Units . | . . . . . . Scanalyzers . | . . . . . . Garrison Access . | . . . . . . Data Cores Recovered . | . . . . . . Used . | . . . . . . Hacking Detections 17 | . 1 . 10 2 4 Full Trace Events 2 | . . . 1 1 . Feedback Events 1 | . . . 1 . . Corruption 1 | . . . 1 . . Feedback Blocked . | . . . . . . Robot Schematics Acquired . | . . . . . . Robots Built . | . . . . . . Authchips . | . . . . . . Time . | . . . . . . Total Robot Build Rating . | . . . . . . Part Schematics Acquired 4 | . . . 2 . 2 Parts Built . | . . . . . . Authchips . | . . . . . . Time . | . . . . . . Total Part Build Rating . | . . . . . . Parts Repaired 1 | . . . 1 . . Time 26 | . . . 26 . . Parts Recycled . | . . . . . . Recycled Matter . | . . . . . . Retrieved Matter . | . . . . . . Retrieved Components . | . . . . . . Parts Scanalyzed 1 | . . . . . 1 Part Schematics Acquired 1 | . . . . . 1 Parts Damaged . | . . . . . . Bothacking | -11 -10 -10 -8 -8 -7 ------------ Run | Yrd Mat Sub Mat Gar Fac Used RIF Installer . | . . . . . . Robots Hacked . | . . . . . . Non-combat . | . . . . . . Combat . | . . . . . . Robot Hacks Applied . | . . . . . . Relay Couplers Released 6 | . . . . 6 . Machine Destruction 6 | . . . . 6 . Fabnet Peak Effective % . | . . . . . . Robots Rewired . | . . . . . . Allies Hacked . | . . . . . . Hacks Repelled . | . . . . . . Allies | -11 -10 -10 -8 -8 -7 -------- Run | Yrd Mat Sub Mat Gar Fac Total Allies . | . . . . . . Largest Group . | . . . . . . Highest-Rated Group . | . . . . . . Highest-Rated Ally . | . . . . . . Total Orders . | . . . . . . Ally Attacks . | . . . . . . Total Damage . | . . . . . . Kills . | . . . . . . Allies Corrupted . | . . . . . . Allies Melted . | . . . . . . Intel | -11 -10 -10 -8 -8 -7 ------- Run | Yrd Mat Sub Mat Gar Fac Robot Analysis Total . | . . . . . . Derelict Logs Recovered 1 | . . 1 . . . Drone Launches . | . . . . . . Drone Recoveries . | . . . . . . Exploration | -11 -10 -10 -8 -8 -7 ------------- Run | Yrd Mat Sub Mat Gar Fac Turns Passed 6507 | 218 699 1811 1768 917 1094 Spaces Moved 3207 | 107 267 635 686 454 1058 Core 5 | 5 . . . . . Treads 1586 | 102 267 . 449 454 314 Legs 806 | . . 635 171 . . Wheels 66 | . . . 66 . . Hover . | . . . . . . Flight 744 | . . . . . 744 Fastest Speed 40 | 50 160 190 130 160 40 Average Speed 155 | 154 160 248 181 164 77 Slowest Speed 400 | 160 160 260 400 166 166 Overloaded Moves . | . . . . . . Propulsion Burnouts . | . . . . . . Robots Hopped 6 | . . . . . 6 Cave-ins Triggered . | . . . . . . Exploration Rate (%) 39 | 7 49 27 56 67 31 Regions Visited 5 Branch Regions 1 Pre-discovered Areas . | . . . . . . Known Exits Taken 1 | . . . 1 . . Unknown Exits Taken 3 | 1 1 1 . . . Scrap Searched 1 | . . 1 . . . Spaces Dug 37 | . 5 . . 25 7 Terrain Destroyed 211 | . 5 . 8 159 39 Melee 7 | . . . . . 7 Projectile 13 | . 5 . 8 . . AOE 191 | . . . . 159 32 Terrain Rammed . | . . . . . . Walls Destroyed . | . . . . . . Machines Disabled . | . . . . . . Actions | -11 -10 -10 -8 -8 -7 --------- Run | Yrd Mat Sub Mat Gar Fac Total 4242 | 133 451 836 1017 563 1242 Wait 472 | . 130 147 93 27 75 Move 3189 | 106 266 634 685 452 1046 Hop 6 | . . . . . 6 Pick Up 52 | 7 4 8 26 2 5 Fast Attach 46 | 7 1 4 23 1 10 Attach 22 | . 2 6 8 . 6 Detach 13 | . 2 4 1 . 6 Swap 51 | . 3 6 12 21 9 Drop 73 | . 1 7 44 8 13 Fire 278 | 13 42 20 124 46 33 Melee 37 | . . . . 6 31 Ram . | . . . . . . Kick . | . . . . . . Crush 1 | . . . 1 . . Escape Stasis . | . . . . . . Rewire . | . . . . . . Trap . | . . . . . . Miscellaneous 2 | . . . . . 2 Route ------- -11/Scrapyard -10/Materials (discovered 2 exits: [*Min] / *Sub) -10/Subcaves -8/Materials (discovered 3 exits: *Fac / [*Sto] / Gar) -8/Garrison (discovered 2 exits: *Fac x2) -7/Factory (discovered 2 exits: [*Fac] / [*Low]) History --------- Turn | Location | Event 2 | -11/Scrapyard | Met Revision 17 5 | -11/Scrapyard | Discovered new exit (range 14) 219 | -11/Scrapyard | Entered Materials 340 | -10/Materials | Build established: Mutant 644 | -10/Materials | Discovered new exit (range 5) 892 | -10/Materials | Discovered new exit (range 3) 918 | -10/Materials | Entered Subcaves 919 | -10/Subcaves | Ambushed by Subdwellers from Twisted Machinery 929 | -10/Subcaves | Core integrity fell below 50% 959 | -10/Subcaves | Lost 4 parts (1p2n1w) 1150 | -10/Subcaves | Visited 4L-MR0's lab 1168 | -10/Subcaves | Found Flightbrick 1388 | -10/Subcaves | Discovered new exit (range 8) 2036 | -10/Subcaves | Learned 4 Materials zone layouts 2181 | -10/Subcaves | A swath of the cavern ceiling suddenly collapsed 2729 | -10/Subcaves | Entered Materials 2729 | -8/Materials | Evolved 4 slots: Propulsion x2, Utility x2 3079 | -8/Materials | Build established: Scavenger-Mutant 3349 | -8/Materials | Repaired Lgt. Treads 3357 | -8/Materials | Discovered new exit (range 16) 4486 | -8/Materials | Discovered new exit (range 6) 4492 | -8/Materials | Identified exit to Garrison 4497 | -8/Materials | Entered Garrison 4524 | -8/Garrison | Triggered checkpoint 4569 | -8/Garrison | Garrison Relay disabled 4763 | -8/Garrison | Warlord forces raided the area 4774 | -8/Garrison | Triggered checkpoint 4846 | -8/Garrison | Triggered checkpoint 4851 | -8/Garrison | Discovered new exit (range 9) 4882 | -8/Garrison | Triggered checkpoint 4919 | -8/Garrison | Attempted to access garrison exit controls, blocked by remote lockdown 5034 | -8/Garrison | Build established: Mutant 5096 | -8/Garrison | Discovered new exit (range 12) 5164 | -8/Garrison | Triggered checkpoint 5167 | -8/Garrison | Core integrity fell below 50% 5234 | -8/Garrison | Triggered checkpoint 5242 | -8/Garrison | Garrison Relay disabled 5369 | -8/Garrison | Phase Generator disabled 5414 | -8/Garrison | Entered Factory 5414 | -7/Factory | Evolved 2 slots: Utility x2 5814 | -7/Factory | First assault squad dispatched 6004 | -7/Factory | Lost 3 parts (1p1n1u) 6084 | -7/Factory | Attached Flightbrick, gained temporary slots: Utility x3 6224 | -7/Factory | Discovered new exit (range 15) 6422 | -7/Factory | Discovered new exit (range 16) 6450 | -7/Factory | Build established: Hacker-Mutant 6508 | -7/Factory | Self-destructed Last Messages --------------- 25 Terminals 5 Fabricators 6 Repair Stations 6 Recycling Units 4 Scanalyzers 3 Garrison Accesses Downloaded coordinate data. 06475_ O-24 Administrator: "IFF HANDSHAKE FAILED. SECURING TERMINAL." 06478_ Destroyed Imp. Hover Unit. 06489_ U-05 Engineer builds a Wall. 06501_ P-60 Hacker suffers critical hit (Impale). 06501_ P-60 Hacker destroyed. 06504_ / SD8QPERXRB|/Q|LSFFSKP/HK16%C 06505_ Acquired 40 matter. 06505_ ALERT: Hostiles spotted, dispatching reinforcements to Terminal F008. 06505_ Acquired Unknown Processor. 06505_ Identified Target Analyzer. 06507_ Discarded Target Analyzer. 06508_ Temporary Utility slot lost. Map ----- +----------------------------------------------------+ | ### #????????????????????????????????????????????? | | # #????????????????????????????????????????????? | | # #????????????????????????????????????????????? | | # #????????????????????????????????????????????? | | # #################????????????????????????????? | | + + #???? ??##???????????????????? | | # #### #? ##T ######?????????????? | | # #??# # ?????????????? | | # #??# "" """ # ??????????????? | | # #??# "" """ + ??????????????? | | ### #??# """ """ # ???????????????? | | #??# """ # ???????????????? | | #??# """ # #???????????????? | | #??# # #???????????????? | | #??# # #???????????????? | | #??# # #???????????????? | | #### ! # #???????????????? | | ####/######### #???????????????? | | #??# ######### #?##????????????? | | #### # #########+#######????????????? | | # * #??# u #????????????? | | + #??# !!#????????????? | | # #??# !!#????????????? | | #########??# #????????????? | | #????????##* #????????????? | | ########### @ #????????????? | | ## # #????????????? | | ## ###### ## """ "# #????????????? | | ?#+#???## ## """ "# #????????????? | | ""?? # # """ = "# #????????????? | | [[ """ # # oT# #????????????? | | [[ """ # / """ "# #????????????? | | [[ + # """ "##############????????????? | | | # # """ ! "#?????????????????????????? | | # # #?????????????????????????? | | ######### ##########?????????????????????????? | | ???????# #????????#######??????????????????? | | ???????# ########## #??????????????????? | | ???????# ########???????????? | | ???????# ???????????? | | ???????# ###???????????? | | ???????# #### """ """ """ #?#???????????? | | ???????# #??# """ """ """ #?#???????????? | | ???????#########??# """ """ """ #?#???????????? | | ??????????????????# #?#???????????? | | ??????????????????# """ """ """ ###???????????? | | ?????????????????????????????????????????????????? | | ?????????????????????????????????????????????????? | | ?????????????????????????????????????????????????? | | ?????????????????????????????????????????????????? | +----------------------------------------------------+ Best States ------------- Heat Dissipation 65 Energy Generation 18 Energy Capacity 290 Matter Stores 300 Matter Capacity 300 Sight Range 16 Terrain Scan Density 10 Armor Coverage 375 Core Shielding 20 Propulsion Shielding 66 Utility Shielding 66 Evasion (%) 62 Targeting Accuracy 6 Recoil Reduction 4 Offensive Hacking 34 Defensive Hacking 10 Authchip Count 1 Item Schematics ----------------- Lrg. Storage Unit | -8/Materials | Hacked Hcp. Storage Unit | -8/Materials | Hacked Adv. Hacking Suite | -7/Factory | Scanalyzed Adv. Sensor Array | -7/Factory | Hacked Robot Schematics ------------------ None Fabricated ------------ Nothing Alien Tech Used ----------------- None Achievements -------------- None Challenges ------------ None Game ------ Seed HardcellPulseCharge Manual? 0 Play Time 00:50:23 Cumulative 97.6 hours Start 2024.04.03 @ 21:35:54 End 2024.04.05 @ 12:38:38 Sessions 12 Manual Loads 0 Difficulty Rogue Special Mode None Game No. 59 Rogue 59 Adventurer 0 Explorer 0 Win Type - Total 3 Types 2/0/0/1/0/0/0/0/0 Lore% 70 Gallery% 65 Achievement% 58 Wizard Run 0 Options --------- Layout 0 ASCII 0 Keyboard 1 Movement Numpad Keybinds 0 Fullscreen 1 Font 18/SmallcapsGlow Map View 76x50 Zoom Use 0% Tactical HUD 1 Map Filters NONE Filters NONE Steam 1 RUN: abf0212c-cb12-4845-a33d-ac6b0d4bbb67